bitfinex-derivatives/quotes_SOLF0:USTF0_20260311
["timestamp","ask_amount","ask_price","bid_price","bid_amount"]
[1773250504234,14.4,87.345,87.26,2.44857953]
[1773250504437,2.44857953,87.3,87.244,13.95786007]
[1773250504627,2.44857953,87.3,87.242,13.95786007]
[1773250505234,10.31,87.283,87.242,13.95786007]
[1773250505430,10.31,87.283,87.24,2.44857953]
[1773250505431,2.44857953,87.3,87.24,2.44857953]
[1773250505638,2.44857953,87.29,87.228,13.95786007]
[1773250505836,10.312,87.271,87.227,13.95786007]
[1773250507333,2.44857953,87.29,87.224,13.95786007]
[1773250507537,2.44857953,87.29,87.226,13.95786007]
[1773250508042,2.44857953,87.3,87.24,2.44857953]
[1773250508433,14.4,87.312,87.226,13.95786007]
[1773250508434,10.311,87.281,87.25,2.44857953]
[1773250508635,2.44857953,87.31,87.25,2.44857953]
[1773250509334,10.309,87.291,87.25,2.44857953]
[1773250509738,2.44857953,87.31,87.25,2.44857953]
[1773250509946,10.308,87.299,87.26,2.44857953]
[1773250510139,10.308,87.299,87.251,10.314]
[1773250510140,20.609,87.333,87.27,2.44857953]
[1773250510336,2.44857953,87.34,87.28,2.44857953]
[1773250510541,10.306,87.322,87.28,2.44857953]
[1773250510940,10.306,87.322,87.272,10.312]
[1773250511442,10.305,87.33,87.28,2.44857953]
[1773250512046,2.44857953,87.34,87.28,2.44857953]
[1773250512047,10.306,87.323,87.281,10.31]
[1773250512447,16.84857953,87.35,87.28,2.44857953]
[1773250513548,10.305,87.325,87.28,12.75957953]
[1773250513747,10.305,87.325,87.29,2.44857953]
[1773250514053,10.304,87.333,87.29,2.44857953]
[1773250514252,10.304,87.333,87.3,2.44857953]
[1773250514551,10.304,87.333,87.29,2.44857953]
[1773250515346,10.304,87.333,87.291,10.309]
[1773250517251,10.305,87.326,87.282,13.95786007]
[1773250517447,10.305,87.326,87.28,13.95786007]
[1773250517650,11.51277911,87.36,87.282,13.95786007]
[1773250517851,196.8824679,87.362,87.282,13.95786007]
[1773250518054,196.8824679,87.362,87.281,13.95786007]
[1773250518246,14.4,87.361,87.281,13.95786007]
[1773250518453,10.304,87.334,87.283,10.31]
[1773250518950,208.07614706,87.362,87.286,13.95786007]
[1773250519151,20.595,87.394,87.291,13.95786007]
[1773250519357,14.4,87.393,87.295,13.95786007]
[1773250519655,14.4,87.393,87.306,13.95786007]
[1773250520251,14.4,87.392,87.304,13.95786007]
[1773250520859,20.589,87.417,87.31,6.11687636]
[1773250521056,14.4,87.416,87.31,6.11687636]
[1773250521255,25.65539488,87.416,87.31,6.11687636]
[1773250522458,10.299,87.378,87.327,10.305]
[1773250522856,25.65539488,87.416,87.338,10.304]
[1773250523054,25.65539488,87.416,87.313,13.95786007]
[1773250523358,25.65539488,87.416,87.31,6.11687636]
[1773250523359,20.59,87.413,87.31,20.07473643]
[1773250523547,20.59,87.413,87.31,6.11687636]
[1773250523955,10.299,87.383,87.326,10.305]
[1773250525259,25.65539488,87.416,87.31,6.11687636]
[1773250525460,25.65539488,87.416,87.311,13.95786007]
[1773250525461,14.4,87.415,87.311,13.95786007]
[1773250525649,14.4,87.415,87.33,6.11687636]
[1773250525954,11.25539488,87.416,87.33,6.11687636]
[1773250525955,14.4,87.414,87.357,10.302]
[1773250526158,14.4,87.414,87.33,6.11687636]
[1773250526561,14.4,87.414,87.363,10.301]
[1773250526956,10.295,87.413,87.368,10.3]
[1773250527663,10.294,87.421,87.368,10.3]
[1773250527955,14.4,87.432,87.375,10.299]
[1773250528155,14.4,87.432,87.35,6.11687636]
[1773250528358,14.4,87.432,87.38,10.299]
[1773250528561,14.4,87.433,87.38,10.299]
[1773250529556,14.4,87.433,87.37,6.11687636]
[1773250529756,6.11687636,87.47,87.37,6.11687636]
[1773250530057,14.4,87.449,87.355,10.302]
[1773250530262,20.582,87.448,87.348,281.15217809]
[1773250530462,14.4,87.449,87.348,281.15217809]
[1773250530955,6.11687636,87.45,87.348,281.15217809]
[1773250531159,14.4,87.449,87.348,281.15217809]
[1773250531360,14.4,87.449,87.36,6.11687636]
[1773250531565,10.292,87.44,87.36,6.11687636]
[1773250531859,14.4,87.455,87.36,6.11687636]
[1773250532064,14.4,87.454,87.36,6.11687636]
[1773250532256,14.4,87.453,87.36,6.11687636]
[1773250534162,10.292,87.437,87.384,10.298]
[1773250534867,14.4,87.453,87.36,6.11687636]
[1773250535564,2.44124051,87.45,87.39,2.44124051]
[1773250535757,2.44124051,87.44,87.38,2.44124051]
[1773250536766,14.4,87.453,87.38,2.44124051]
[1773250537063,2.44124051,87.44,87.38,2.44124051]
[1773250537460,10.292,87.436,87.382,10.299]
[1773250538662,11.45362657,87.47,87.4,2.44124051]
[1773250538663,2.44124051,87.46,87.4,2.44124051]
[1773250539663,11.45362657,87.47,87.37,14.4]
[1773250539664,2.44124051,87.47,87.412,10.295]
[1773250539860,2.44124051,87.48,87.41,2.44124051]
[1773250540260,2.44124051,87.48,87.42,2.44124051]
[1773250540667,2.44124051,87.48,87.41,2.44124051]
[1773250540863,2.44124051,87.48,87.42,2.44124051]
[1773250541062,2.44124051,87.49,87.43,2.44124051]
[1773250541963,2.44124051,87.49,87.396,14.4]
[1773250542265,2.44124051,87.46,87.4,2.44124051]
[1773250542465,2.44124051,87.45,87.39,2.44124051]
[1773250543267,2.44124051,87.46,87.39,2.44124051]
[1773250543474,2.44124051,87.46,87.4,2.44124051]
[1773250543659,10.29,87.459,87.37,6.10196728]
[1773250544265,10.29,87.459,87.408,10.295]
[1773250544569,10.29,87.459,87.373,20.6]
[1773250544768,10.29,87.452,87.373,20.6]
[1773250545963,10.291,87.446,87.403,10.296]
[1773250548167,11.2481607,87.496,87.39,6.10196728]
[1773250548363,14.4,87.508,87.39,6.10196728]
[1773250549568,14.4,87.508,87.41,6.10196728]
[1773250550071,20.569,87.505,87.41,6.10196728]
[1773250551372,20.569,87.505,87.425,10.294]
[1773250551373,10.287,87.477,87.425,10.294]
[1773250553173,14.4,87.502,87.431,10.293]
[1773250553871,14.4,87.502,87.41,6.10196728]
[1773250554067,6.10196728,87.5,87.39,6.10196728]
[1773250554274,14.4,87.499,87.39,6.10196728]
[1773250554678,10.291,87.447,87.398,10.297]
[1773250554876,20.572,87.493,87.39,6.10196728]
[1773250555367,10.29,87.457,87.39,6.10196728]
[1773250555971,10.29,87.457,87.356,20.604]
[1773250555972,6.10196728,87.46,87.35,6.10196728]
[1773250556681,6.10196728,87.46,87.348,281.15217809]
[1773250557774,6.10581554,87.46,87.35,6.10581554]
[1773250558077,14.4,87.459,87.35,6.10581554]
[1773250558478,10.293,87.427,87.37,10.3]
[1773250560175,10.293,87.427,87.34,10.24033865]
[1773250560176,6.10581554,87.42,87.316,10.24033865]
[1773250560379,14.4,87.419,87.299,14.4]
[1773250560578,14.4,87.419,87.31,6.10581554]
[1773250560778,10.298,87.39,87.31,6.10581554]
[1773250561278,10.298,87.39,87.28,34.3]
[1773250561279,6.10581554,87.4,87.29,6.10581554]
[1773250561480,6.10581554,87.38,87.284,14.4]
[1773250561779,6.10581554,87.38,87.27,14.4]
[1773250561978,6.10581554,87.36,87.252,10.34104923]
[1773250562180,20.50581554,87.36,87.241,10.34104923]
[1773250562375,10.305,87.329,87.264,10.312]
[1773250562777,14.4,87.36,87.26,6.10581554]
[1773250562978,6.10581554,87.38,87.26,6.10581554]
[1773250563279,14.4,87.379,87.261,10.34104923]
[1773250563482,6.10581554,87.38,87.28,6.10581554]
[1773250563878,10.301,87.364,87.28,6.10581554]
[1773250564678,196.58172663,87.4,87.28,6.10581554]
[1773250564679,10.3,87.375,87.28,6.10581554]
[1773250564880,196.58172663,87.4,87.3,6.10581554]
[1773250565084,196.58172663,87.4,87.302,10.34104923]
[1773250565285,10.299,87.376,87.313,10.307]
[1773250565883,10.299,87.376,87.291,14.4]
[1773250565884,10.299,87.376,87.302,10.308]
[1773250566082,202.68754217,87.4,87.291,14.4]
[1773250566083,10.301,87.358,87.291,14.4]
[1773250566284,10.301,87.358,87.276,10.34104923]
[1773250566488,6.10581554,87.38,87.28,10.311]
[1773250566881,6.10581554,87.38,87.266,10.34104923]
[1773250567088,6.10581554,87.36,87.269,10.312]
[1773250568386,10.306,87.324,87.256,10.313]
[1773250569387,10.307,87.314,87.256,10.313]
[1773250570784,10.308,87.305,87.245,10.315]
[1773250571086,10.308,87.305,87.22,10.34104923]
[1773250571288,10.308,87.305,87.216,10.34104923]
[1773250571486,10.308,87.305,87.243,10.315]
[1773250571882,10.309,87.293,87.219,10.34104923]
[1773250572084,10.309,87.293,87.23,10.316]
[1773250572288,6.10581554,87.32,87.211,10.34104923]
[1773250572289,14.42,87.319,87.211,10.34104923]
[1773250572483,10.311,87.274,87.21,280.58428824]
[1773250572689,6.10581554,87.3,87.21,280.58428824]
[1773250574388,6.10581554,87.28,87.21,280.58428824]
[1773250575194,10.313,87.261,87.21,280.58428824]
[1773250575894,10.314,87.252,87.21,280.58428824]
[1773250576287,6.10581554,87.28,87.21,280.58428824]
[1773250576686,6.10581554,87.28,87.171,14.42]
[1773250576887,6.10581554,87.26,87.166,10.324]
[1773250577291,10.315,87.24,87.16,6.10581554]
[1773250577488,6.10581554,87.26,87.165,10.324]
[1773250577687,6.10581554,87.26,87.14,6.10581554]
[1773250578091,10.318,87.218,87.139,14.42]
[1773250578296,6.10581554,87.24,87.139,14.42]
[1773250578690,10.318,87.218,87.139,14.42]
[1773250579288,11.34949286,87.255,87.08,6.10581554]
[1773250579289,6.10581554,87.2,87.08,6.10581554]
[1773250579486,6.10581554,87.18,87.055,14.42]
[1773250579790,6.10581554,87.22,87.055,14.42]
[1773250579791,6.10581554,87.19,87.087,10.333]
[1773250579993,6.10581554,87.19,87.08,6.10581554]
[1773250580200,14.42,87.203,87.08,6.10581554]
[1773250580494,10.322,87.186,87.087,10.333]
[1773250580896,14.42,87.203,87.087,10.333]
[1773250581089,10.322,87.188,87.1,16.43781554]
[1773250581893,10.322,87.188,87.113,10.33]
[1773250582294,10.323,87.176,87.1,6.10581554]
[1773250582493,10.323,87.176,87.102,10.332]
[1773250582994,10.322,87.188,87.102,10.332]
[1773250583186,10.322,87.188,87.09,6.10581554]
[1773250583187,10.322,87.188,87.114,10.33]
[1773250583793,10.32,87.2,87.114,10.33]
[1773250584992,6.10581554,87.17,87.06,6.10581554]
[1773250585393,6.10581554,87.21,87.08,6.10581554]
[1773250585603,6.10581554,87.21,87.1,6.10581554]
[1773250586996,6.10581554,87.21,87.058,1.99715921]
[1773250586997,6.10581554,87.21,87.102,10.332]
[1773250587202,6.10581554,87.19,87.06,6.10581554]
[1773250587600,10.326,87.153,87.087,10.333]
[1773250588599,6.10581554,87.19,87.058,1.99715921]
[1773250588600,6.10581554,87.19,87.08,6.10581554]
[1773250589201,6.10581554,87.17,87.058,1.99715921]
[1773250589400,6.10581554,87.17,87.05,6.10581554]
[1773250589603,20.52581554,87.17,87.058,1.99721652]
[1773250589804,20.52581554,87.17,87.05,6.10581554]
[1773250590108,14.42,87.169,87.05,6.10581554]
[1773250590515,10.327,87.14,87.069,10.336]
[1773250590716,10.327,87.14,87.05,6.10581554]
[1773250591109,10.326,87.151,87.07,6.10581554]
[1773250591310,6.10581554,87.2,87.07,6.10581554]
[1773250591509,14.42,87.199,87.07,6.10581554]
[1773250591711,10.323,87.174,87.09,6.10581554]
[1773250593410,10.324,87.165,87.09,6.10581554]
[1773250594008,10.325,87.157,87.1,10.332]
[1773250594212,6.10581554,87.2,87.1,10.332]
[1773250594413,6.10581554,87.2,87.09,6.10581554]
[1773250594805,10.324,87.166,87.109,10.331]
[1773250595007,6.10581554,87.2,87.09,6.10581554]
[1773250595609,6.10581554,87.2,87.071,14.42]
[1773250596115,10.326,87.148,87.088,10.333]
[1773250596413,6.10581554,87.17,87.06,6.10581554]
[1773250596808,10.328,87.138,87.08,10.334]
[1773250600019,20.644,87.189,87.08,6.10581554]
[1773250600719,6.10581554,87.17,87.06,6.10581554]
[1773250602912,6.10581554,87.17,87.085,10.334]
[1773250603321,6.10581554,87.17,87.075,10.335]
[1773250603918,10.328,87.133,87.075,10.335]
[1773250604114,6.10581554,87.15,87.047,14.42]
[1773250604416,6.10581554,87.17,87.05,6.10581554]
[1773250604721,10.328,87.136,87.081,10.334]
[1773250605616,6.10581554,87.17,87.048,1.99777833]
[1773250605820,160.531,87.206,87.03,6.10581554]
[1773250605821,6.10581554,87.15,87.03,6.10581554]
[1773250606211,10.329,87.122,87.07,10.335]
[1773250606615,10.329,87.122,87.03,6.10581554]
[1773250607213,10.331,87.112,87.049,10.338]
[1773250607413,14.42,87.157,87.05,6.10581554]
[1773250607618,6.10581554,87.15,87.03,6.10581554]
[1773250607818,10.332,87.098,87.046,287.80071444]
[1773250608019,6.10581554,87.15,87.046,287.80071444]
[1773250608224,6.10581554,87.15,87.046,277.46271444]
[1773250608426,10.329,87.121,87.063,10.336]
[1773250608719,6.10581554,87.15,87.046,277.46271444]
[1773250609821,6.10581554,87.15,87.05,6.10581554]
[1773250610025,14.42,87.154,87.05,6.10581554]
[1773250610930,10.329,87.123,87.066,10.336]
[1773250611123,20.649,87.165,87.05,6.10581554]
[1773250611330,14.42,87.157,87.05,6.10581554]
[1773250611525,6.10581554,87.15,87.05,6.10581554]
[1773250611734,6.10581554,87.15,87.03,283.45018322]
[1773250612029,10.331,87.107,87.053,10.337]
[1773250613330,10.332,87.1,87.053,10.337]
[1773250613530,20.654,87.146,87.06,10.337]
[1773250613927,10.331,87.105,87.03,6.10581554]
[1773250614232,14.42,87.149,87.028,1.99795611]
[1773250614426,6.10581554,87.13,87.02,6.10581554]
[1773250614926,6.10581554,87.13,87.042,10.339]
[1773250615430,10.332,87.104,87.042,10.339]
[1773250615634,6.10581554,87.13,87.034,10.34]
[1773250615937,10.332,87.097,87.029,278.99242665]
[1773250616231,6.10581554,87.13,87.045,10.338]
[1773250616425,10.333,87.093,87.029,278.99242665]
[1773250616627,10.333,87.093,87.043,10.339]
[1773250616832,6.10581554,87.13,87.043,10.339]
[1773250617027,6.10581554,87.13,87.029,278.99242665]
[1773250617730,6.15231846,87.13,87.04,10.339]
[1773250617933,20.658,87.126,87.029,278.99242665]
[1773250618322,20.658,87.126,87.039,10.339]
[1773250619029,6.15231846,87.13,87.029,278.99242665]
[1773250619334,6.15231846,87.14,87.015,10.19465491]
[1773250619930,6.15231846,87.14,87.016,10.19465491]
[1773250620229,6.15231846,87.14,87.03,6.15231846]
[1773250620428,10.332,87.103,87.047,10.338]
[1773250620624,170.95609003,87.18,87.03,6.15231846]
[1773250620625,14.42,87.143,87.032,10.19465491]
[1773250620829,14.42,87.142,87.044,10.19465491]
[1773250621023,14.42,87.142,87.036,10.19465491]
[1773250621224,14.42,87.142,87.012,280.21649086]
[1773250621225,6.15231846,87.13,87.032,10.19465491]
[1773250621423,14.42,87.142,87.012,280.21649086]
[1773250621424,6.15231846,87.11,87.026,10.19465491]
[1773250621625,6.15231846,87.11,87.02,10.19465491]
[1773250621828,6.15231846,87.13,87.028,10.19465491]
[1773250622027,6.15231846,87.13,87.038,10.19465491]
[1773250622234,10.332,87.103,87.047,10.338]
[1773250622435,6.15231846,87.13,87.038,10.19465491]
[1773250622630,6.15231846,87.13,87.036,10.19465491]
[1773250622836,6.15231846,87.13,87.035,10.19465491]
[1773250623132,6.15231846,87.13,87.053,10.337]
[1773250623333,6.15231846,87.15,87.051,10.19465491]
[1773250623533,10.329,87.126,87.07,10.335]
[1773250623938,14.42,87.149,87.07,10.335]
[1773250624638,14.42,87.149,87.039,20.56157697]
[1773250624639,6.15231846,87.17,87.064,10.19465491]
[1773250624831,14.42,87.169,87.071,10.19465491]
[1773250625037,14.42,87.169,87.07,10.19465491]
[1773250625230,14.42,87.169,87.077,10.335]
[1773250625437,14.42,87.169,87.048,14.42]
[1773250625438,14.42,87.169,87.058,10.19465491]
[1773250625740,14.42,87.169,87.046,10.19465491]
[1773250625940,6.15231846,87.15,87.048,10.19465491]
[1773250626136,6.15231846,87.15,87.049,10.19465491]
[1773250626537,10.331,87.106,87.053,10.337]
[1773250626736,6.15231846,87.15,87.053,10.337]
[1773250626939,14.42,87.149,87.053,10.337]
[1773250627135,20.654,87.146,87.06,10.337]
[1773250627441,14.42,87.149,87.044,10.19465491]
[1773250627739,10.331,87.109,87.044,10.19465491]
[1773250627935,20.654,87.145,87.048,10.19465491]
[1773250628139,20.654,87.145,87.049,10.19465491]
[1773250628340,20.654,87.145,87.044,10.19465491]
[1773250628537,10.334,87.082,87.036,10.19465491]
[1773250628835,6.15231846,87.13,87.016,10.52205784]
[1773250629135,20.658,87.126,87.025,10.52205784]
[1773250629440,20.659,87.122,87.017,10.52205784]
[1773250629639,160.649,87.142,87.017,10.52205784]
[1773250629640,160.682,87.124,87.017,10.52205784]
[1773250629830,6.15231846,87.05,86.966,5.784e-05]
[1773250630032,6.15231846,87.05,86.947,14.05639862]
[1773250630235,6.15231846,87.05,86.939,14.03551715]
[1773250630643,6.15231846,87.05,86.95,6.15231846]
[1773250630841,6.15231846,87.05,86.945,14.03551715]
[1773250631139,6.15231846,87.03,86.916,14.03551715]
[1773250631344,6.15231846,87.03,86.918,2.00043113]
[1773250631536,6.15231846,87.03,86.911,14.03551715]
[1773250631739,6.15231846,87.01,86.911,14.03551715]
[1773250632042,6.15231846,87.01,86.878,20.717]
[1773250632043,6.15231846,87.01,86.907,14.03551715]
[1773250632239,6.15231846,86.99,86.89,14.03551715]
[1773250632440,6.15231846,86.99,86.888,2.00120187]
[1773250632639,6.15231846,86.99,86.875,14.03551715]
[1773250632942,6.15231846,86.97,86.868,2.00166806]
[1773250633142,6.15231846,86.93,86.873,0.00020768]
[1773250633336,6.15231846,86.94,86.873,0.00020768]
[1773250633644,6.15231846,86.95,86.873,0.00020768]
[1773250634042,14.42,86.957,86.873,0.00020768]
[1773250634444,10.352,86.933,86.873,0.00020768]
[1773250634643,6.15231846,86.95,86.873,0.00020768]
[1773250635542,14.42,86.95,86.873,0.00020768]
[1773250636447,6.15231846,86.99,86.88,6.15231846]
[1773250636643,6.15231846,86.97,86.873,0.00020768]
[1773250638345,10.35,86.951,86.873,0.00020768]
[1773250638545,6.15231846,86.95,86.873,0.00020768]
[1773250638946,14.42,86.949,86.873,0.00020768]
[1773250639447,14.42,86.948,86.873,0.00020768]
[1773250639648,6.15231846,86.93,86.873,0.00020768]
[1773250639849,6.15231846,86.92,86.873,0.00020768]
[1773250640452,10.357,86.893,86.873,0.00020768]
[1773250640949,14.42,86.901,86.786,10.369]
[1773250641153,6.15231846,86.88,86.76,6.15231846]
[1773250641445,14.42,86.879,86.76,6.15231846]
[1773250641649,10.361,86.857,86.776,10.37]
[1773250641852,6.15231846,86.87,86.75,6.15231846]
[1773250642049,6.15231846,86.87,86.77,6.15231846]
[1773250642252,10.362,86.844,86.77,6.15231846]
[1773250642950,14.42,86.869,86.77,6.15231846]
[1773250643547,14.42,86.869,86.772,10.371]
[1773250644344,10.36,86.861,86.786,10.369]
[1773250644550,14.42,86.878,86.77,6.15231846]
[1773250644745,14.42,86.878,86.79,6.15231846]
[1773250644948,14.42,86.902,86.81,6.15231846]
[1773250645147,6.15231846,86.9,86.79,6.15231846]
[1773250645350,6.15231846,86.88,86.787,10.369]
[1773250645550,6.15231846,86.88,86.78,6.15231846]
[1773250645750,6.15231846,86.9,86.78,6.15231846]
[1773250645954,14.42,86.899,86.78,6.15231846]
[1773250646149,10.36,86.866,86.78,6.15231846]
[1773250646647,181.712,86.946,86.771,282.04654188]
[1773250646648,160.961,86.974,86.82,6.15231846]
[1773250646950,14.42,86.939,86.84,6.15231846]
[1773250647351,6.15231846,86.96,86.84,6.15231846]
[1773250647557,6.15231846,86.96,86.86,6.15231846]
[1773250647756,14.44,86.959,86.86,6.15231846]
[1773250647954,10.35,86.947,86.875,10.359]
[1773250648555,10.35,86.947,86.882,10.358]
[1773250648758,10.349,86.958,86.882,10.358]
[1773250649156,14.42,86.966,86.88,6.15231846]
[1773250649356,10.35,86.946,86.86,6.15231846]
[1773250649658,14.42,86.966,86.86,6.15231846]
[1773250650057,10.35,86.948,86.874,10.359]
[1773250650261,14.42,86.965,86.86,6.15231846]
[1773250650452,10.354,86.918,86.85,16.51431846]
[1773250650651,6.15231846,86.96,86.85,6.15231846]
[1773250651458,10.352,86.929,86.86,10.36]
[1773250651656,6.15231846,86.96,86.85,6.15231846]
[1773250652061,10.351,86.937,86.85,6.15231846]
[1773250652362,14.42,86.959,86.85,6.15231846]
[1773250653251,10.353,86.927,86.85,6.15231846]
[1773250653659,14.42,86.959,86.85,6.15231846]
[1773250653950,160.969,86.969,86.85,6.15231846]
[1773250654157,6.15231846,86.94,86.81,6.15231846]
[1773250654362,6.15231846,86.92,86.81,6.15231846]
[1773250654562,10.357,86.893,86.79,6.15231846]
[1773250654751,14.42,86.904,86.81,6.15231846]
[1773250654952,6.15231846,86.93,86.83,6.15231846]
[1773250655357,10.355,86.906,86.839,10.363]
[1773250656156,10.356,86.897,86.832,10.364]
[1773250656357,6.15231846,86.93,86.83,6.15231846]
[1773250656755,6.15231846,86.91,86.764,20.744]
[1773250656958,6.15231846,86.91,86.8,6.15231846]
[1773250657156,10.356,86.902,86.83,10.364]
[1773250657457,10.356,86.902,86.764,161.348]
[1773250657458,6.15231846,86.91,86.8,6.15231846]
[1773250657962,6.15231846,86.89,86.78,6.15231846]
[1773250658164,14.42,86.889,86.78,6.15231846]
[1773250659166,10.36,86.864,86.799,10.368]
[1773250659665,6.15231846,86.89,86.799,10.368]
[1773250659867,6.15231846,86.89,86.788,10.369]
[1773250660067,20.708,86.916,86.8,6.15231846]
[1773250660269,20.708,86.915,86.8,6.15231846]
[1773250660462,6.15231846,86.9,86.78,6.15231846]
[1773250660664,160.928,86.991,86.85,6.15231846]
[1773250660859,10.349,86.96,86.87,6.15231846]
[1773250661063,6.15231846,86.97,86.85,6.15231846]
[1773250661264,6.15231846,86.95,86.801,161.28]
[1773250661457,6.15231846,86.95,86.83,6.15231846]
[1773250661657,14.42,86.951,86.83,6.15231846]
[1773250661963,6.15231846,86.94,86.83,6.15231846]
[1773250662169,10.353,86.921,86.865,10.36]
[1773250662467,6.15231846,86.94,86.83,6.15231846]
[1773250662668,6.15231846,86.94,86.81,6.15231846]
[1773250662865,6.15231846,86.94,86.847,10.362]
[1773250663364,14.42,86.939,86.83,6.15231846]
[1773250663561,14.42,86.966,86.85,6.15231846]
[1773250663767,6.15231846,86.97,86.87,6.15231846]
[1773250663963,6.15231846,86.97,86.835,14.42]
[1773250664267,6.15231846,86.97,86.86,6.15231846]
[1773250664868,6.15231846,86.99,86.88,6.15231846]
[1773250665671,6.15231846,86.99,86.905,10.355]
[1773250665672,10.349,86.959,86.905,10.355]
[1773250665867,10.349,86.959,86.88,6.15231846]
[1773250666071,6.15231846,86.99,86.88,6.15231846]
[1773250666370,10.349,86.961,86.894,10.356]
[1773250666570,6.15231846,86.99,86.894,10.356]
[1773250666871,14.42,86.989,86.894,10.356]
[1773250667068,6.15231846,87.0,86.904,10.355]
[1773250667267,14.42,86.999,86.904,10.355]
[1773250667467,10.348,86.968,86.904,10.355]
[1773250667673,10.348,86.968,86.912,10.354]
[1773250667973,14.42,86.996,86.87,6.15231846]
[1773250668369,10.349,86.961,86.899,10.356]
[1773250669577,10.349,86.961,86.87,6.15231846]
[1773250669776,10.35,86.952,86.87,6.15231846]
[1773250670472,6.15231846,86.98,86.887,10.357]
[1773250670673,6.15231846,86.98,86.85,6.15231846]
[1773250670875,6.15231846,86.96,86.84,6.15231846]
[1773250671076,6.15231846,86.94,86.84,6.15231846]
[1773250671277,6.15231846,86.94,86.812,14.42]
[1773250671278,6.15231846,86.94,86.82,6.15231846]
[1773250672181,10.353,86.919,86.84,6.15231846]
[1773250672379,6.15231846,86.95,86.84,6.15231846]
[1773250672581,6.15231846,86.95,86.82,6.15231846]
[1773250673673,10.356,86.895,86.836,10.363]
[1773250673869,10.356,86.895,86.82,6.15231846]
[1773250674077,6.15231846,86.93,86.82,6.15231846]
[1773250674678,10.357,86.89,86.82,6.15231846]
[1773250675071,6.15231846,86.91,86.817,10.366]
[1773250675479,6.15231846,86.94,86.769,13.91378825]
[1773250675480,20.715,86.887,86.769,13.91378825]
[1773250675674,6.15231846,86.87,86.765,13.91378825]
[1773250675977,14.42,86.886,86.78,6.15231846]
[1773250676184,14.42,86.885,86.78,6.15231846]
[1773250676477,14.42,86.885,86.771,282.04654188]
[1773250676684,6.15231846,86.87,86.771,282.04654188]
[1773250677079,20.709,86.912,86.771,282.04654188]
[1773250677272,6.15231846,86.89,86.771,282.04654188]
[1773250677475,6.15231846,86.89,86.782,10.37]
[1773250678078,10.362,86.849,86.771,282.04654188]
[1773250678479,10.36,86.868,86.812,10.366]
[1773250678678,6.15231846,86.89,86.79,6.15231846]
[1773250679274,14.42,86.893,86.791,10.369]
[1773250679480,14.42,86.893,86.771,282.04654188]
[1773250679481,6.15231846,86.91,86.79,6.15231846]
[1773250679680,14.42,86.909,86.785,13.91378825]
[1773250679886,10.361,86.857,86.804,10.367]
[1773250680275,6.18401097,86.89,86.804,10.367]
[1773250680579,10.361,86.854,86.792,10.369]
[1773250680787,161.06,86.92,86.771,282.04654188]
[1773250680788,6.18401097,86.87,86.771,282.04654188]
[1773250680980,14.42,86.869,86.771,282.04654188]
[1773250681179,10.365,86.824,86.74,6.18401097]
[1773250681483,6.18401097,86.85,86.728,13.91378825]
[1773250681783,14.42,86.849,86.74,6.18401097]
[1773250681986,14.42,86.848,86.72,6.18401097]
[1773250682281,14.42,86.847,86.74,6.18401097]
[1773250682586,6.18401097,86.83,86.72,6.18401097]
[1773250682781,6.18401097,86.83,86.695,280.05300636]
[1773250682782,6.18401097,86.81,86.7,6.18401097]
[1773250683186,10.368,86.799,86.72,6.18401097]
[1773250683479,6.18401097,86.83,86.72,6.18401097]
[1773250683684,10.371,86.77,86.715,10.378]
[1773250683989,14.42,86.808,86.715,10.378]
[1773250684185,10.371,86.771,86.704,10.379]
[1773250684984,10.372,86.76,86.695,280.05300636]
[1773250685281,6.18401097,86.81,86.71,6.18401097]
[1773250685679,10.368,86.8,86.73,6.18401097]